Cogmind - Beta 16 @@@ ROGUE MODE // 2025.10.23 @ 03:35:47 Player: Naiya55 Result: Destroyed by as-26712 with Assembled Heavy Rifle Performance ------------- Evolutions (0) 0 Regions Visited (2) 400 Robots Destroyed (21) 105 Value Destroyed (434) 434 Prototype IDs (3) 60 Alien Tech Used (0) 0 Bonus (0) 0 TOTAL SCORE: 999 Bonus ------- None Cogmind --------- Core Integrity 0/250 Matter 247/300 Energy 100/100 System Corruption 0% Temperature Cool (0) Movement Core (700) Ox13 Location -10/Mines Parts ------- > --- POWER (1) -------- (None) > --- PROPULSION (2) --- (None) > --- UTILITY (2) ------ High-capacity Storage Unit > --- WEAPON (2) ------- (None) > --- INVENTORY (20) --- Light Ion Engine Light Ion Engine Light Nuclear Core Aluminum Leg Heat Sink Large Storage Unit Huge Storage Unit Signal Interpreter ECM Suite Assault Rifle Light Assault Rifle Grenade Launcher Grenade Launcher Peak State ------------ > --- POWER ------------ Ion Engine > --- PROPULSION ------- Improved Treads Improved Treads > --- UTILITY ---------- High-capacity Storage Unit Hardened Light Armor Plating > --- WEAPON ----------- Medium Laser Assault Rifle > --- INVENTORY -------- Ion Engine Light Ion Engine Light Ion Engine Light Ion Engine Improved Treads Improved Treads Heat Sink Large Storage Unit Huge Storage Unit Signal Interpreter ECM Suite Hardened Light Armor Plating Hardened Light Armor Plating Grenade Launcher Grenade Launcher Grenade Launcher [Rating: 12] Favorites ----------- Power Ion Engine Engine Ion Engine Propulsion Improved Treads Treads Improved Treads Utility Hardened Light Armor Plating Storage High-capacity Storage Unit Protection Hardened Light Armor Plating Weapon Assault Rifle Energy Gun Medium Laser Ballistic Gun Assault Rifle Launcher Grenade Launcher Build | -11 -10 -10 ------- Run | Yrd Mat Min Slots Evolved . | . . . Power . | . . . Propulsion . | . . . Utility . | . . . Weapon . | . . . Parts Attached 21 | 7 7 7 Power 3 | 2 . 1 Engine 3 | 2 . 1 Core . | . . . Reactor . | . . . Propulsion 6 | 2 2 2 Treads 6 | 2 2 2 Leg . | . . . Wheel . | . . . Hover . | . . . Flight . | . . . Utility 7 | 1 4 2 Device . | . . . Storage 4 | 1 3 . Processor . | . . . Hackware . | . . . Protection 3 | . 1 2 Artifact . | . . . Weapon 5 | 2 1 2 Energy Gun 1 | 1 . . Energy Cannon . | . . . Ballistic Gun 3 | 1 1 1 Ballistic Cannon . | . . . Launcher 1 | . . 1 Special Weapon . | . . . Impact Weapon . | . . . Slashing Weapon . | . . . Piercing Weapon . | . . . Special Melee Weapon . | . . . Unidentified Prototypes . | . . . Parts Lost 12 | . . 12 Power 3 | . . 3 Propulsion 4 | . . 4 Utility 3 | . . 3 Weapon 2 | . . 2 Highest Loss Streak 7 | . . 7 To Critical Strikes . | . . . Average Backups 12 | 4 10 15 Power 2 | . 2 3 Propulsion 1 | 2 2 1 Utility 5 | . 4 6 Weapon 2 | . 1 3 Tool/Special . | . . . Unused Backups 19 | . 9 10 Power 3 | . . 3 Propulsion 5 | . 4 1 Utility 7 | . 4 3 Weapon 4 | . 1 3 Tool/Special . | . . . Average Slot Usage (%) 98 | . 99 95 Engine 13 | . 13 12 Treads 27 | . 28 26 Storage 14 | . 14 14 Protection 13 | . 13 13 Energy Gun 11 | . 13 7 Ballistic Gun 16 | . 14 19 Peak Build Rating 12 | 6 12 12 Average Rating 10 | 4 10 11 On Entrance 6 | . 6 12 Avg Prop Armor Cover (%) . | . . . Naked Turns . | . . . Heaviest Build 94 | 14 94 54 Greatest Support 46 | 40 46 46 Greatest Overweight (x) 13 | . 2 13 Average Overweight (x) . | . . 1 Largest Inventory Capacity 25 | 8 25 20 Average Capacity 15 | 7 12 20 Most Carried 18 | 6 17 18 Average Carried 12 | 4 10 15 Final Capacity 20 | 8 20 20 Final Carried 16 | 6 16 13 Class Distribution -------------------- 100% | Mutant Dominant Class ---------------- Mutant | -10/Materials Mutant | -10/Mines Resources | -11 -10 -10 ----------- Run | Yrd Mat Min Matter Collected 551 | 171 182 198 Remotely . | . . . Salvage Created 500 | . 227 273 Parts 33 | . 19 14 Haulers Intercepted . | . . . Recyclers Shooed . | . . . Parts Field Recycled . | . . . Retrieved Matter . | . . . Parts Self-Destructed . | . . . Prevented . | . . . Parts Restored . | . . . Kills | -11 -10 -10 ------- Run | Yrd Mat Min Combat Hostiles Destroyed 22 | . 11 11 Guns 17 | . 8 9 AOE 5 | . 3 2 Classes Destroyed 5 | . 4 1 Worker 1 | . 1 . Operator 1 | . 1 . Swarmer 12 | . 9 3 Grunt 7 | . 2 5 Assembled 3 | . . 3 Best Kill Streak 4 | . 4 3 Combat Bots Only 4 | . 4 3 Max Kills in Single Turn 3 | . 3 1 Gunslinging 1 | . 1 . Exploded 3 | . 3 1 Melee . | . . . Uniques/NPCs Destroyed . | . . . Combat | -11 -10 -10 -------- Run | Yrd Mat Min Hostile Shots Fired 173 | . 70 103 Missed 43 | . 22 21 Hits 130 | . 48 82 Projectile 130 | . 48 82 AOE 14 | . . 14 Critical Strikes 1 | . . 1 Damage Taken 2010 | . 467 1543 Core 262 | . 37 225 Absorbed by Shields . | . . . Core Remaining (%) 100 | 100 . . Volleys Fired 60 | . 21 39 Largest 2 | . 2 2 Hottest 70 | . 70 70 Shots Fired 113 | . 42 71 Gun 108 | . 42 66 Cannon . | . . . Launcher 5 | . . 5 Special . | . . . Kinetic 76 | . 21 55 Thermal 32 | . 21 11 Explosive 5 | . . 5 Electromagnetic . | . . . Robot Hit Streak 11 | . 6 11 Robot Miss Streak 3 | . 3 3 Penetration Max . | . . . Secondary Targets 3 | . 2 1 Max Gunslinging Chain 1 | . 1 1 Shots Hit Robots 68 | . 20 48 Core Hits 41 | . 14 27 Critical Kills . | . . . Critical Parts Destroyed 1 | . . 1 Critical Strikes 2 | . 1 1 Burn 1 | . 1 . Destroy 1 | . . 1 Melee Attacks . | . . . Impact . | . . . Slashing . | . . . Piercing . | . . . Sneak Attacks . | . . . Combat Hostiles . | . . . Follow-up Attacks . | . . . Damage Inflicted 1324 | . 663 661 Guns 812 | . 282 530 Cannons . | . . . Explosions 496 | . 368 128 Melee . | . . . Ramming 16 | . 13 3 Kinetic 592 | . 139 453 Thermal 588 | . 511 77 Explosive 128 | . . 128 Electromagnetic . | . . . Impact . | . . . Slashing . | . . . Piercing . | . . . Highest Corruption . | . . . Average Corruption . | . . . Corruption Purged . | . . . Corruption Blocked . | . . . Overload Shots . | . . . Overflow Damage 163 | . 163 . Projectiles . | . . . Explosions 163 | . 163 . Melee . | . . . Knockbacks . | . . . Impact . | . . . Kinetic . | . . . Secondary . | . . . Self-Inflicted Damage 95 | . 59 36 Shots 2 | . 1 1 Rammed 4 | . 3 1 Targets Rammed 4 | . 3 1 Kicked . | . . . Crushed . | . . . Highest Temperature 283 | . 135 283 Average Temperature 69 | . 56 79 Received Heat Transfer 420 | . 30 390 Effects 1 | . . 1 Interference 1 | . . 1 Siege Activations . | . . . Martial Activations . | . . . Shielding Activations . | . . . Robots Disrupted . | . . . Combat Hostiles . | . . . Robots Corrupted . | . . . Combat Hostiles . | . . . Parts Fried . | . . . Impact Corruptions . | . . . Robots Melted . | . . . Combat Hostiles . | . . . Parts Melted 1 | . 1 . Heat Transferred 903 | . 681 222 Parts Sabotaged . | . . . Parts Stolen . | . . . Parts Stripped . | . . . Power Chain Reactions . | . . . Alert | -11 -10 -10 ------- Run | Yrd Mat Min Maximum Alert Level . | . . . Low Security (%) 100 | 100 100 100 Level 1 . | . . . Level 2 . | . . . Level 3 . | . . . Level 4 . | . . . Level 5 . | . . . High Security . | . . . Max Security . | . . . Peak Influence 175 | . 175 70 Initial 15 | . . 15 Average 31 | . 46 11 Influence Increases 552 | . 314 238 Destroy 0b10 Robot/C 380 | . 220 160 Destroy 0b10 Robot/NC 10 | . 10 . Destroy Leader 70 | . 30 40 Successful Hack 15 | . 15 . Disable Machine 30 | . 30 . Destroy Structure 32 | . 9 23 Lose Combat Pursuer 15 | . . 15 Influence Decreases 552 | . 273 279 Entered New Map 26 | . . 26 Time Decay 485 | . 273 212 Lost Part 41 | . . 41 Squads Dispatched . | . . . Investigation . | . . . Extermination . | . . . Reinforcement . | . . . Assault . | . . . Garrison . | . . . Intercept . | . . . Searches Triggered . | . . . Construction Impeded . | . . . Haulers Reinforced . | . . . Active Scanning Responses . | . . . Cargo Convoy Interrupts . | . . . Stealth | -11 -10 -10 --------- Run | Yrd Mat Min Distress Signals 1 | . 1 . Communications Jammed . | . . . Distress Signals . | . . . Times Spotted 57 | . 27 30 Peak Tracking Total 17 | . 6 17 Tactical Retreats 4 | . . 4 Traps | -11 -10 -10 ------- Run | Yrd Mat Min Traps Triggered 1 | . 1 . Indirectly . | . . . Trap Hack Attempts . | . . . Triggered . | . . . Disarmed . | . . . Reprogrammed . | . . . Reused . | . . . Traps Extracted . | . . . Installed . | . . . Triggered . | . . . Machines | -11 -10 -10 ---------- Run | Yrd Mat Min Machines Disabled 2 | . 2 . Max in Single Turn 2 | . 2 . Machines Repaired . | . . . Machines Dismantled . | . . . Machines Sabotaged . | . . . Overloaded Fab Kills . | . . . Hacking | -11 -10 -10 --------- Run | Yrd Mat Min Machines Accessed 4 | . 4 . Terminals 4 | . 4 . Fabricators . | . . . Repair Stations . | . . . Recycling Units . | . . . Scanalyzers . | . . . Garrison Access . | . . . Total Hacks 11 | . 11 . Successful 5 | . 5 . Failed 5 | . 5 . Catastrophic . | . . . Database Lockouts 1 | . 1 . Manual 20 | . 20 . Terminals 11 | . 11 . Fabricators . | . . . Repair Stations . | . . . Recycling Units . | . . . Scanalyzers . | . . . Garrison Access . | . . . Terminal Hacks 5 | . 5 . Robot Analysis 2 | . 2 . Prototype ID Bank 2 | . 2 . Hauler Manifests 1 | . 1 . Fabricator Hacks . | . . . Repair Station Hacks . | . . . Recycling Unit Hacks . | . . . Scanalyzer . | . . . Garrison Access Hacks . | . . . Unauthorized Hacks . | . . . Terminals . | . . . Fabricators . | . . . Repair Stations . | . . . Recycling Units . | . . . Scanalyzers . | . . . Garrison Access . | . . . Data Cores Recovered 1 | . 1 . Used . | . . . Hacking Detections 5 | . 5 . Full Trace Events . | . . . Feedback Events . | . . . Feedback Blocked . | . . . Robot Schematics Acquired . | . . . Robots Built . | . . . Authchips . | . . . Time . | . . . Total Robot Build Rating . | . . . Part Schematics Acquired . | . . . Parts Built . | . . . Authchips . | . . . Time . | . . . Total Part Build Rating . | . . . Part Studies Acquired . | . . . Parts Repaired . | . . . Time . | . . . Parts Recycled . | . . . Recycled Matter . | . . . Retrieved Matter . | . . . Retrieved Components . | . . . Parts Scanalyzed . | . . . Part Schematics Acquired . | . . . Parts Damaged . | . . . Bothacking | -11 -10 -10 ------------ Run | Yrd Mat Min Used RIF Installer . | . . . Robots Hacked . | . . . Non-combat . | . . . Combat . | . . . Robot Hacks Applied . | . . . Relay Couplers Released . | . . . Fabnet Peak Effective % . | . . . Robots Rewired . | . . . Allies Hacked . | . . . Hacks Repelled . | . . . Allies | -11 -10 -10 -------- Run | Yrd Mat Min Total Allies . | . . . Largest Group . | . . . Highest-Rated Group . | . . . Highest-Rated Ally . | . . . Total Orders . | . . . Ally Attacks . | . . . Total Damage . | . . . Kills . | . . . Allies Corrupted . | . . . Allies Melted . | . . . Intel | -11 -10 -10 ------- Run | Yrd Mat Min Active Infowar (turns) . | . . . Robot Analysis Total 2 | . 2 . Derelict Logs Recovered 1 | . . 1 Drone Launches . | . . . Drone Recoveries . | . . . Exploration | -11 -10 -10 ------------- Run | Yrd Mat Min Turns Passed 2738 | 98 1589 1051 Spaces Moved 1279 | 58 843 378 Core 16 | 12 . 4 Treads 1263 | 46 843 374 Legs . | . . . Wheels . | . . . Hover . | . . . Flight . | . . . Fastest Speed 50 | 50 160 160 Average Speed 193 | 137 174 244 Slowest Speed 700 | 160 320 700 Overloaded Moves . | . . . Propulsion Burnouts . | . . . Robots Hopped . | . . . Potential Cave-ins 5 | . . 5 Cave-ins Triggered . | . . . Exploration Rate (%) 57 | 5 93 75 Regions Visited 2 Branch Regions 1 Pre-discovered Areas 1 | . . 1 Known Exits Taken . | . . . Unknown Exits Taken 2 | 1 1 . Scrap Searched . | . . . Spaces Dug . | . . . Terrain Destroyed 38 | . 9 29 Melee . | . . . Projectile . | . . . AOE 38 | . 9 29 Terrain Rammed . | . . . Walls Destroyed . | . . . Machines Disabled . | . . . Actions | -11 -10 -10 --------- Run | Yrd Mat Min Total 1444 | 76 926 442 Wait 18 | . 7 11 Move 1277 | 57 842 378 Hop . | . . . Pick Up 43 | 12 27 4 Fast Attach . | . . . Attach 16 | 6 3 7 Detach . | . . . Swap 9 | 1 7 1 Drop 17 | . 16 1 Fire 60 | . 21 39 Melee . | . . . Ram . | . . . Kick . | . . . Crush 4 | . 3 1 Escape Stasis . | . . . Rewire . | . . . Trap . | . . . Miscellaneous . | . . . Route ------- -11/Scrapyard -10/Materials (discovered 4 exits: [*Mat x3] / [*Min]) -10/Mines (discovered 2 exits: [*Mat] / [*Sub]) History --------- Turn | Location | Event 9 | -11/Scrapyard | Discovered new exit (range 14) 99 | -11/Scrapyard | Entered Materials 185 | -10/Materials | Central database locked down 276 | -10/Materials | Discovered new exit (range 16) 303 | -10/Materials | Build established: Mutant 615 | -10/Materials | Discovered new exit (range 10) 837 | -10/Materials | Discovered new exit (range 8) 1147 | -10/Materials | Discovered new exit (range 16) 1688 | -10/Materials | Entered Mines 2055 | -10/Mines | Learned location of Storage (-9) 2093 | -10/Mines | Discovered new exit (range 9) 2248 | -10/Mines | Discovered new exit (range 5) 2484 | -10/Mines | Core integrity fell below 50% 2642 | -10/Mines | Assembled infested the area 2715 | -10/Mines | Core integrity fell below 20% 2739 | -10/Mines | Destroyed by as-26712 with Assembled Heavy Rifle Last Messages --------------- 02714_ Imp. Treads destroyed. 02717_ U-05 Engineer lays Concrete. 02717_ U-05 Engineer builds a Wall. 02718_ The unstable cave ceiling collapses. 02718_ U-05 Engineer builds a Wall. 02720_ The unstable cave ceiling collapses. 02722_ U-05 Engineer builds a Wall. 02723_ U-05 Engineer lays Concrete. 02724_ U-05 Engineer builds a Wall. 02725_ The unstable cave ceiling collapses. 02728_ U-05 Engineer lays Concrete. 02728_ U-05 Engineer builds a Wall. 02729_ The unstable cave ceiling collapses. 02729_ U-05 Engineer builds a Wall. 02730_ D-53 Grenadier destroyed. 02732_ The unstable cave ceiling collapses. 02733_ U-05 Engineer builds a Wall. 02736_ The unstable cave ceiling collapses. 02737_ U-05 Engineer lays Concrete. 02738_ U-05 Engineer builds a Wall. Map ----- +----------------------------------------------------+ | ????## #??????# ########### #??? | | ?????? #????????????????## ##?? | | ?????? #???????????????# #?? | | ??????# #???# ########## ##? | | ???????#$ ###???# #? | | ???????? #?????# #? | | ???????? #??????######### ##? | | ???????? #?????????????## ##?? | | ?????????##????????????## ##??? | | ?????????????????????### ##???? | | ??????????????????#### ##????? | | ??????????????????# ##?????? | | ?????????????????## #??????? | | ?????????????????# ## ###?????? | | ?????????????????# ##?????? | | ?????????????????# # #?????? | | ????????????????## ##????? | | ???????????????## ## #????? | | ?????????# ???# #????? | | #??????????# #! #????? | | #???????## ##### # # #????? | | #????????# %% u! # ##????? | | #????????#### ## # #????? | | ???????? # # #????? | | ???????? ##### ## ###????? | | ???????????????## # @#??????? | | ???????????????# #?????? | | ???????????????# # < ###?????? | | ??????????????# a ###???????? | | ??????????????# # # #?????????? | | ??????????????## ?????????? | | ??????????????# #?????????? | | ??????????????# ?????????? | | ??????????????## #?????????? | | ???????????????## ??????????? | | ???????????????? #??????????? | | ???????????????## ##???????????? | | ??????????????????##?????????????? | | ?????????????????????????????????? | | ?????????????????????????????????? | | ?????????????????????????????????? | | ?????????????????????????????????? | | ?????????????????????????????????? | | ?????????????????????????????????? | | ?????????????????????????????????? | | ?????????????????????????????????? | | ?????????????????????????????????? | | ?????????????????????????????????? | | ?????????????????????????????????? | | ?????????????????????????????????? | +----------------------------------------------------+ Best States ------------- Heat Dissipation 25 Energy Generation 10 Energy Capacity 250 Matter Stores 300 Matter Capacity 300 Sight Range 16 Terrain Scan Density 10 Armor Coverage 150 Evasion (%) 40 Recoil Reduction 2 Item Schematics ----------------- None Robot Schematics ------------------ None Fabricated ------------ Nothing Repaired ---------- Nothing Studied --------- None Alien Tech Used ----------------- None Achievements -------------- For Emergencies Only Organ Harvest Overwhelming Challenges ------------ None Game ------ Seed TeslaCoolantSuperbattery Manual? 0 Play Time 00:21:45 Cumulative 8.5 hours Start 2025.10.23 @ 03:13:30 End 2025.10.23 @ 03:35:47 Sessions 1 Manual Loads 0 Difficulty Rogue Special Mode None Game No. 28 Rogue 28 Adventurer 0 Explorer 0 Win Type - Total 0 Types 0/0/0/0/0/0/0/0/0/0 Lore% 10 Gallery% 8 Achievement% 8 Wizard Run 0 Options --------- Layout 1 ASCII 0 Keyboard 0 Movement Vi Keybinds 0 Fullscreen 2 Font 24/Smallcaps Map View 50x35 Zoom Use 0% Tactical HUD 1 Map Filters NONE Filters NONE Steam 1 RUN: 6e1c1685-bfd2-46cf-b6f9-2225a56c1da3